[Event "Chinese League Div-A Rapid 2022"]
[Site "Fuling,Chongqing"]
[Date "2022.09.11"]
[Round "5.21"]
[White "Zhao, Jun"]
[Black "Bai, Jinshi"]
[Result "1-0"]
[ECO "C42"]
[WhiteElo "2619"]
[BlackElo "2586"]
[Annotator "TA"]
[PlyCount "113"]
[EventDate "2022.09.07"]
[EventType "team-tourn"]
[EventCountry "CHN"]
[SourceTitle "playchess.com"]
[Source "ChessBase"]
[SourceQuality "1"]
[TimeControl "1500+10"]

{[%evp 18,113,26,11,25,11,18,22,19,34,25,11,36,33,41,37,36,42,37,28,47,37,61,61,61,61,61,61,61,68,63,63,63,63,63,60,76,71,79,75,86,88,87,80,92,78,102,85,78,69,102,100,103,68,61,60,60,60,61,53,53,53,53,53,61,54,54,54,61,0,0,0,0,0,0,0,-8,-8,705,614,2264,123,4132,3916,2325,413,29978,29979,29978,29979,29979,29980,29981,29981,29982,29983,29983,29979]} 1. e4 {[%emt 0:00:03]} e5 {[%emt 0:00:06]} 2. Nf3 {[%emt 0:00:03]} Nf6 {[%emt 0:00:09]} 3. Nxe5 {[%emt 0:00:03]} d6 {[%emt 0:00:02]} 4. Nf3 {[%emt 0:00:02]} Nxe4 {[%emt 0:00:03]} 5. d4 {[%emt 0:00:03]} d5 {[%emt 0:00:11]} 6. Bd3 {[%emt 0:00:03]} Bd6 {[%emt 0:00:13]} 7. O-O {[%emt 0:00:05]} O-O {[%emt 0:00:03]} 8. c4 {[%emt 0:00:47]} c6 {[%emt 0:00:06]} 9. Re1 {[%emt 0:01:47]} Bf5 {[%emt 0:00:15]} 10. Qb3 {[%emt 0:02:52]} Na6 {[%emt 0:00:31] C42: Petroff Defence: 3 Nxe5 and unusual White 3rd moves.} 11. cxd5 {[%emt 0:00:53]} cxd5 {[%emt 0:00:03]} 12. Nc3 {[%emt 0:00:03]} Nb4 {[%emt 0:00:28] The position is equal. is the new trend.} 13. Bxe4 {[%emt 0:00:37]} dxe4 {[%emt 0:00:07]} 14. Bg5 {[%emt 0:00:13]} Qb6 {[%emt 0:00:17]} 15. Nxe4 {[%emt 0:00:41]} Be6 {[%emt 0:00:09]} 16. Qa3 {[%emt 0:07:05]} Rfe8 {[%emt 0:00:13]} 17. Nxd6 {[%emt 0:00:25]} Qxd6 {[%emt 0:00:05]} 18. Bd2 {[%emt 0:00:37]} a5 {[%emt 0:00:07]} 19. Re5 {[%emt 0:00:51]} Red8 {[%emt 0:00:15]} 20. Rxa5 {[%emt 0:02:24]} Rxa5 {[%emt 0:00:13]} 21. Qxa5 {[%emt 0:00:04]} Nc6 {[%emt 0:00:20]} 22. Qc5 {[%emt 0:01:26]} Nxd4 {[%emt 0:00:14]} 23. Qxd4 {[%emt 0:00:23]} Qxd4 {[%emt 0:00:03]} 24. Nxd4 {[%emt 0:00:01]} Rxd4 $14 {[%emt 0:00:01][%mdl 4096] Endgame KRB-KRB} 25. Bc3 {[%emt 0:00:36] [#]} Rd3 $146 {[%emt 0:02:34]} ({Predecessor:} 25... Ra4 26. a3 f6 27. Re1 Kf7 28. f3 b5 29. Kf2 h5 30. Kg3 Ra7 31. Re4 Ra4 32. Bb4 Ra7 33. h4 Rd7 34. Kf4 Rc7 35. Bc3 Rc4 36. Rxc4 Bxc4 {½-½ (36) Hayakawa,S (2339)-Koesebay,O (2512) ICCF email 2009}) 26. f3 {[%emt 0:00:49]} g5 {[%emt 0:01:11]} 27. Kf2 {[%emt 0:00:15]} h5 {[%emt 0:00:12]} 28. a4 {[%emt 0:01:37]} g4 {[%emt 0:01:28]} 29. fxg4 {[%emt 0:00:06]} hxg4 {[%emt 0:00:05]} 30. Re1 {[%emt 0:00:04]} Kh7 {[%emt 0:01:06]} 31. a5 {[%emt 0:00:17]} Rd5 {[%emt 0:01:14]} 32. Kg3 {[%emt 0:00:29]} Kg6 {[%emt 0:00:09]} 33. Re4 {[%emt 0:00:19]} Rb5 {[%emt 0:01:19]} 34. Rd4 {[%emt 0:00:40]} Kg5 {[%emt 0:01:30]} 35. Rd8 {[%emt 0:01:59]} f5 {[%emt 0:01:49]} 36. Bd2+ {[%emt 0:00:00]} f4+ {[%emt 0:01:18]} 37. Bxf4+ {[%emt 0:00:00]} Kf5 {[%emt 0:00:02] Strongly threatening ...Rb3+.} 38. Bc1 {[%emt 0:00:44]} Rxa5 {[%emt 0:00:20]} 39. Bd2 {[%emt 0:00:02]} Rd5 {[%emt 0:02:57]} 40. Rf8+ {[%emt 0:00:02]} Ke4 {[%emt 0:00:07] aiming for ...Rd3+.} 41. Rf4+ {[%emt 0:00:13]} Kd3 {[%emt 0:00:02]} 42. Bc3 {[%emt 0:00:01]} b5 {[%emt 0:00:16]} 43. Rxg4 {[%emt 0:01:47]} (43. h4 $14) 43... Bxg4 $11 {[%emt 0:01:48]} 44. Kxg4 $14 {[%emt 0:00:01] KR-KB} b4 {[%emt 0:00:32]} 45. Bf6 {[%emt 0:00:02]} Ke4 {[%emt 0:00:01]} 46. h4 {[%emt 0:00:21] And now h5 would win.} Rf5 {[%emt 0:00:01]} 47. Be7 {[%emt 0:00:41] Threatens to win with h5.} b3 $2 {[%emt 0:02:51][%mdl 8192]} (47... Rf2 $11 48. Bxb4 Rxg2+ 49. Kh5 Kf4) 48. h5 $18 {[%emt 0:00:01]} Rf7 {[%emt 0:03:58] [#]} 49. Bg5 {[%emt 0:00:01]} (49. Bh4 $1 $18 {and the rest is easy.} Kd3 50. Kg5 Rg7+ 51. Kf6 Rxg2 52. h6) 49... Rf2 $2 {[%emt 0:01:20][%mdl 8192] [#]} (49... Kd3 $16) 50. h6 $1 {[%emt 0:00:33]} Rxg2+ {[%emt 0:00:05]} 51. Kh5 {[%emt 0:00:01] Threatening mate with h7.} Rxb2 {[%emt 0:00:57]} (51... Kf5 $18 52. Bh4 Rg8) 52. h7 {[%emt 0:00:01] White mates.} Rh2+ {[%emt 0:00:03]} 53. Bh4 {[%emt 0:00:01]} b2 {[%emt 0:00:12]} 54. h8=Q {[%emt 0:00:03]} Kd3 {[%emt 0:00:04]} 55. Qh7+ {[%emt 0:00:08]} Kc3 {[%emt 0:00:01]} 56. Kg4 {[%emt 0:00:23]} Kb3 {[%emt 0:00:32]} 57. Qb1 {[%emt 0:00:11] Weighted Error Value: White=0.20 (precise) /Black=0.26 (precise)} 1-0

[Event "Chinese League Div-A Rapid 2022"]
[Site "Fuling,Chongqing"]
[Date "2022.09.11"]
[Round "5.23"]
[White "Huang, Renjie"]
[Black "Xu, Zhihang"]
[Result "1/2-1/2"]
[ECO "C73"]
[WhiteElo "2446"]
[BlackElo "2489"]
[Annotator "TA"]
[PlyCount "41"]
[EventDate "2022.09.07"]
[EventType "team-tourn"]
[EventCountry "CHN"]
[SourceTitle "playchess.com"]
[Source "ChessBase"]
[SourceQuality "1"]
[TimeControl "1500+10"]

{[%evp 12,41,11,11,7,0,0,-5,0,0,0,0,0,-18,-14,-65,-6,-58,-33,-35,-26,-81,-91,-70,-66,-76,-77,-74,-72,-65,-70,-64]} 1. e4 {[%emt 0:00:02]} e5 {[%emt 0:00:01]} 2. Nf3 {[%emt 0:00:01]} Nc6 {[%emt 0:00:02]} 3. Bb5 {[%emt 0:00:01]} a6 {[%emt 0:00:01]} 4. Ba4 {[%emt 0:00:01]} d6 {[%emt 0:00:20]} 5. Bxc6+ {[%emt 0:00:11]} bxc6 {[%emt 0:00:01]} 6. d4 {[%emt 0:00:01]} exd4 {[%emt 0:00:31]} 7. Qxd4 {[%emt 0:00:01]} Nf6 {[%emt 0:00:59] C73: Ruy Lopez: Deferred Steinitz: 5 Bxc6+.} 8. e5 {[%emt 0:01:15]} c5 $1 {[%emt 0:00:39]} 9. Qd3 {[%emt 0:00:02]} dxe5 {[%emt 0:00:29] The position is equal.} 10. Qxd8+ {[%emt 0:00:03]} Kxd8 {[%emt 0:00:02]} 11. Nxe5 {[%emt 0:00:01]} Be6 {[%emt 0:00:01]} 12. Nc3 {[%emt 0:00:33]} Bd6 {[%emt 0:00:08]} 13. Nd3 {[%emt 0:00:08] [#]} (13. Nf3 $11) 13... Re8 $146 {[%emt 0:01:18]} (13... c4 $15 14. Nf4 Bf5) ({Predecessor:} 13... Bf5 14. Bg5 c4 15. Nf4 Bxc2 16. Nh5 Be5 17. O-O h6 18. Bxf6+ gxf6 19. Rfe1 Rb8 {0-1 (30) Aldokhin,I (2413)-Tanenbaum,Z (2137) Chess.com INT 2021}) 14. O-O {[%emt 0:00:07]} (14. Be3 $11) 14... Rb8 {[%emt 0:00:45]} 15. b3 {[%emt 0:01:05]} c4 {[%emt 0:00:21]} 16. Nf4 {[%emt 0:00:45] [#]} (16. Nb2 $11 {remains equal.}) 16... Bf5 $1 $17 {[%emt 0:00:56] This bishop pair is nice.} ({Much worse is} 16... cxb3 17. Nxe6+ Rxe6 18. axb3 $11) 17. bxc4 {[%emt 0:01:24]} Ne4 {[%emt 0:02:09]} 18. Rb1 {[%emt 0:03:48]} Rxb1 {[%emt 0:01:11]} 19. Nxb1 {[%emt 0:00:00][%cal Og2g4]} Nc5 {[%emt 0:00:15]} 20. Nc3 {[%emt 0:00:37]} Bxc2 {[%emt 0:00:07]} 21. Be3 {[%emt 0:00:11] Weighted Error Value: White=0.19 (very precise) /Black=0.10 (very precise)} 1/2-1/2

[Event "Chinese League Div-A Rapid 2022"]
[Site "Fuling,Chongqing"]
[Date "2022.09.11"]
[Round "5.24"]
[White "Yan, Tianqi"]
[Black "Liu, Manli"]
[Result "1-0"]
[ECO "B49"]
[WhiteElo "2188"]
[BlackElo "2195"]
[Annotator "RC"]
[PlyCount "87"]
[EventDate "2022.09.07"]
[EventType "team-tourn"]
[EventCountry "CHN"]
[SourceTitle "playchess.com"]
[Source "ChessBase"]
[SourceQuality "1"]
[TimeControl "1500+10"]

1. e4 {[%emt 0:00:03]} c5 {[%emt 0:00:03]} 2. Nf3 {[%emt 0:00:05]} e6 {[%emt 0:00:05]} 3. d4 {[%emt 0:00:05]} cxd4 {[%emt 0:00:03]} 4. Nxd4 {[%emt 0:00:05]} Nc6 {[%emt 0:00:03]} 5. Nc3 {[%emt 0:00:07]} Qc7 {[%emt 0:00:04]} 6. Be2 {[%emt 0:00:10]} a6 {[%emt 0:00:03]} 7. O-O {[%emt 0:00:11]} Nf6 {[%emt 0:00:02]} 8. Be3 {[%emt 0:00:34]} Bb4 {[%emt 0:00:06]} 9. Na4 {[%emt 0:00:32]} Be7 {[%emt 0:00:05]} 10. Nxc6 {[%emt 0:03:24]} bxc6 {[%emt 0:00:07]} 11. Nb6 {[%emt 0:00:25]} Rb8 {[%emt 0:00:05]} 12. Nxc8 {[%emt 0:00:05]} Qxc8 {[%emt 0:00:03]} 13. Bd4 {[%emt 0:01:38]} c5 {[%emt 0:00:07]} 14. Be5 {[%emt 0:01:17]} Rb6 {[%emt 0:00:07]} 15. b3 {[%emt 0:02:22]} O-O {[%emt 0:05:08]} 16. Bd3 {[%emt 0:01:42]} d6 {[%emt 0:03:22]} 17. Bb2 {[%emt 0:00:53]} Nd7 {[%emt 0:00:30]} 18. f4 {[%emt 0:01:25]} Bf6 {[%emt 0:00:55]} 19. Bxf6 {[%emt 0:03:18]} Nxf6 {[%emt 0:00:02]} 20. e5 {[%emt 0:00:02]} Nd7 {[%emt 0:01:25]} 21. Qe2 {[%emt 0:02:14]} Rd8 {[%emt 0:01:00]} 22. Rf3 {[%emt 0:00:42]} Nf8 {[%emt 0:02:13]} 23. Rh3 {[%emt 0:00:15]} d5 {[%emt 0:00:22]} 24. Bxh7+ {[%emt 0:00:32]} Nxh7 {[%emt 0:00:13]} 25. Qh5 {[%emt 0:00:02]} Kf8 {[%emt 0:00:12]} 26. Qxh7 {[%emt 0:00:08]} c4 {[%emt 0:01:38]} 27. Qh8+ {[%emt 0:02:02]} Ke7 {[%emt 0:00:01]} 28. Qxg7 {[%emt 0:00:02]} Rg8 {[%emt 0:00:30]} 29. Qf6+ {[%emt 0:00:08]} Ke8 {[%emt 0:00:16]} 30. Rh8 {[%emt 0:03:36]} Qc5+ {[%emt 0:00:06]} 31. Kh1 {[%emt 0:00:04]} Rxh8 {[%emt 0:00:28]} 32. Qxh8+ {[%emt 0:00:02]} Ke7 {[%emt 0:00:25]} 33. Qh4+ {[%emt 0:00:18]} Ke8 {[%emt 0:00:09]} 34. Rf1 {[%emt 0:01:17]} Qd4 {[%emt 0:00:20]} 35. Qh8+ {[%emt 0:00:19]} Ke7 {[%emt 0:00:02]} 36. Qf6+ {[%emt 0:00:08]} Ke8 {[%emt 0:01:21]} 37. f5 {[%emt 0:00:02]} Qg4 {[%emt 0:02:20]} 38. Qh8+ {[%emt 0:00:09]} Kd7 {[%emt 0:00:20]} 39. Qf8 {[%emt 0:00:08]} Qh5 {[%emt 0:01:15]} 40. fxe6+ {[%emt 0:00:02]} fxe6 {[%emt 0:01:13]} 41. Rf7+ {[%emt 0:00:12]} Kc6 {[%emt 0:00:03]} 42. Qe8+ {[%emt 0:00:02]} Kc5 {[%emt 0:00:07]} 43. Rc7+ {[%emt 0:00:01]} Kd4 {[%emt 0:00:05]} 44. Qxh5 {[%emt 0:00:14]} 1-0

[Event "Chinese League Div-A Rapid 2022"]
[Site "Fuling,Chongqing"]
[Date "2022.09.11"]
[Round "5.25"]
[White "Hou, Yifan"]
[Black "Hu, Yu A."]
[Result "1-0"]
[ECO "B70"]
[WhiteElo "2650"]
[BlackElo "2074"]
[Annotator "TA"]
[PlyCount "63"]
[EventDate "2022.09.07"]
[EventType "team-tourn"]
[EventCountry "CHN"]
[SourceTitle "playchess.com"]
[Source "ChessBase"]
[SourceQuality "1"]
[TimeControl "1500+10"]

{[%evp 22,63,22,19,5,7,19,0,0,15,0,0,70,53,56,49,123,120,117,104,144,128,160,158,207,201,352,332,341,345,355,335,308,337,541,493,549,516,632,621,1350,1337,29989,29990]} 1. e4 {[%emt 0:00:02]} c5 {[%emt 0:00:01]} 2. Nc3 {[%emt 0:00:02]} d6 {[%emt 0:00:05]} 3. Nge2 {[%emt 0:00:04]} Nf6 {[%emt 0:00:06]} 4. g3 {[%emt 0:00:04]} g6 {[%emt 0:00:04]} 5. d4 {[%emt 0:00:09]} cxd4 {[%emt 0:00:06]} 6. Nxd4 {[%emt 0:00:02]} Bg7 {[%emt 0:00:09]} 7. Bg2 {[%emt 0:00:01]} O-O {[%emt 0:00:09]} 8. O-O {[%emt 0:00:07]} Nc6 {[%emt 0:00:03]} 9. Nde2 {[%emt 0:01:53]} Bd7 {[%emt 0:00:08]} 10. h3 {[%emt 0:00:17]} Rb8 {[%emt 0:00:03] now scores much better than the old 10...Rc8.} 11. a4 {[%emt 0:00:02]} a6 {[%emt 0:00:06]} 12. Bg5 {[%emt 0:00:41]} b5 {[%emt 0:00:12] B70: Sicilian Dragon: 6 g3 and 6 Be2 (without a later Be3).} 13. axb5 {[%emt 0:00:03]} axb5 {[%emt 0:00:01] [#]} 14. b3 $146 {[%emt 0:06:12]} ({Predecessor:} 14. Nd5 Nxd5 15. exd5 Ne5 16. Qc1 b4 17. b3 Bb5 18. Re1 Nd7 19. Ra2 Re8 20. Qd2 Bxe2 21. Rxe2 {0-1 (75) Gasimov,P (2317)-Abdulov,O (2384) Baku 2019}) 14... h6 {[%emt 0:03:25] The position is equal.} 15. Be3 {[%emt 0:00:19]} Ne8 {[%emt 0:02:23]} 16. Rb1 {[%emt 0:05:46]} Nc7 {[%emt 0:02:07]} (16... b4 $11 17. Na4 (17. Nd5 g5 $11) 17... Nf6) 17. Qd2 $14 {[%emt 0:00:10]} Kh7 {[%emt 0:00:03]} 18. Nd5 {[%emt 0:00:09]} Nxd5 {[%emt 0:01:03]} (18... Ne8 $14) 19. exd5 $16 {[%emt 0:00:03]} Na5 {[%emt 0:00:04]} 20. h4 {[%emt 0:02:25][%cal Bh3h4,Bh4h5][%mdl 32]} Qc7 {[%emt 0:00:55]} 21. h5 {[%emt 0:00:42]} Bf5 {[%emt 0:01:11]} 22. Nd4 {[%emt 0:00:21]} Bxd4 {[%emt 0:00:23]} (22... Nb7 $16 23. hxg6+ Bxg6) 23. Bxd4 {[%emt 0:00:32]} Rfc8 $2 {[%emt 0:01:42] [#]} (23... Nb7 24. Rfe1 Qxc2 25. Qxc2 Bxc2) 24. hxg6+ $18 {[%emt 0:00:36]} fxg6 {[%emt 0:01:47]} 25. Rbc1 {[%emt 0:01:37]} Nb7 {[%emt 0:01:51]} 26. Rfe1 {[%emt 0:01:30]} Re8 {[%emt 0:03:03]} 27. Bb2 {[%emt 0:00:55]} Qc5 $2 {[%emt 0:00:26]} (27... e6 {is a better defense.} 28. dxe6 Nc5) 28. b4 {[%emt 0:00:57]} Qc7 {[%emt 0:01:38]} 29. g4 {[%emt 0:00:06]} Bc8 {[%emt 0:01:12]} 30. Be4 {[%emt 0:00:54][%cal Oe4g6] [#] Intending Bxg6+! and mate. A strong pair of Bishops.} Rg8 {[%emt 0:02:32]} 31. Kg2 {[%emt 0:00:16] Rh1 would kill now.} Bxg4 {[%emt 0:00:31]} 32. Rh1 {[%emt 0:00:27] Weighted Error Value: White=0.07 (flawless) /Black=0.74} 1-0

[Event "Chinese League Div-A Rapid 2022"]
[Site "Fuling,Chongqing"]
[Date "2022.09.11"]
[Round "5.26"]
[White "Lin, Yi"]
[Black "Wan, Yunguo"]
[Result "1/2-1/2"]
[ECO "E04"]
[WhiteElo "2394"]
[BlackElo "2508"]
[Annotator "TA"]
[PlyCount "54"]
[EventDate "2022.09.07"]
[EventType "team-tourn"]
[EventCountry "CHN"]
[SourceTitle "playchess.com"]
[Source "ChessBase"]
[SourceQuality "1"]
[TimeControl "1500+10"]

{[%evp 11,54,15,31,13,30,22,34,38,36,25,40,35,34,26,39,40,40,35,89,37,38,41,45,53,71,75,61,53,51,58,69,0,68,64,97,19,31,16,24,14,19,20,21,10,11]} 1. d4 {[%emt 0:00:02] Roiz,M} Nf6 {[%emt 0:00:03]} 2. c4 {[%emt 0:00:01]} e6 {[%emt 0:00:03]} 3. g3 {[%emt 0:00:02]} d5 {[%emt 0:00:05]} 4. Bg2 {[%emt 0:00:03]} dxc4 {[%emt 0:00:03]} 5. Nf3 {[%emt 0:00:02]} Bb4+ {[%emt 0:00:09]} 6. Bd2 {[%emt 0:00:04]} a5 {[%emt 0:00:02]} 7. Qc2 {[%emt 0:00:02] E04: Open Catalan: 5 Nf3.} O-O {[%emt 0:01:07]} (7... b6 {looks sharper.} 8. Ne5 Ra7 9. Bxb4 axb4 10. Qxc4 Qd6) 8. Qxc4 {[%emt 0:00:51]} Bxd2+ {[%emt 0:02:00] 8...b6 is setting a new trend.} 9. Nbxd2 {[%emt 0:00:02] White is slightly better.} b6 {[%emt 0:00:02]} 10. Qc2 {[%emt 0:00:28]} Ba6 {[%emt 0:00:34][%cal Oc7c5] [#]} 11. Nc4 $146 {[%emt 0:01:35]} ({Predecessor:} 11. Ne4 Nxe4 12. Qxe4 Ra7 13. O-O Nd7 14. Qe3 Bb7 15. Rfd1 Qa8 16. Rac1 c5 17. dxc5 Nxc5 {1-0 (36) Roiz,M (2607)-Malikentzos,S (2441) Porto Carras 2018 CBM 187 [Roiz,M]}) 11... Nc6 {[%emt 0:01:11]} 12. O-O {[%emt 0:01:55]} Rc8 {[%emt 0:00:05]} 13. Rfd1 {[%emt 0:01:53]} Nb4 {[%emt 0:00:20]} 14. Qb3 {[%emt 0:01:21]} Qe7 {[%emt 0:02:27]} (14... Bxc4 $14 15. Qxc4 c5) 15. a3 {[%emt 0:00:05]} (15. Nfe5 $16) 15... a4 $14 {[%emt 0:00:33]} 16. Qc3 {[%emt 0:01:38]} Nbd5 {[%emt 0:00:53]} 17. Qc2 {[%emt 0:00:04]} b5 {[%emt 0:00:08]} 18. Nce5 {[%emt 0:00:52]} c5 {[%emt 0:00:03]} 19. dxc5 {[%emt 0:00:12]} Rxc5 {[%emt 0:00:40]} 20. Qd2 {[%emt 0:00:16]} Qc7 {[%emt 0:01:27][%cal Ob5b4]} 21. Nd3 {[%emt 0:02:17] Prevents b4.} ({White should try} 21. Rac1 $14) 21... Rc4 {[%emt 0:00:34]} ({Black should play} 21... Rc2 $11 22. Qe1 b4) 22. Rac1 {[%emt 0:00:41]} Nd7 {[%emt 0:08:30] [#] Prevents Nfe5.} 23. Qe1 {[%emt 0:00:59]} (23. Nd4 $1 $16) 23... Bb7 $11 {[%emt 0:00:51]} 24. Nd2 {[%emt 0:00:28]} Rxc1 {[%emt 0:00:07]} 25. Rxc1 {[%emt 0:00:01]} Qb6 {[%emt 0:00:10] The position is equal.} 26. Ne4 {[%emt 0:01:00]} Ba8 {[%emt 0:02:49]} 27. Qd2 {[%emt 0:01:50]} h6 {[%emt 0:01:30] Weighted Error Value: White=0.12 (very precise) /Black=0.15 (very precise)} 1/2-1/2

[Event "Chinese League Div-A Rapid 2022"]
[Site "Fuling,Chongqing"]
[Date "2022.09.11"]
[Round "5.27"]
[White "Zhou, Weiqi"]
[Black "Zhang, Pengxiang"]
[Result "1-0"]
[ECO "D94"]
[WhiteElo "2597"]
[BlackElo "2564"]
[Annotator "TA"]
[PlyCount "91"]
[EventDate "2022.09.07"]
[EventType "team-tourn"]
[EventCountry "CHN"]
[SourceTitle "playchess.com"]
[Source "ChessBase"]
[SourceQuality "1"]
[TimeControl "1500+10"]

{[%evp 19,91,0,0,0,0,0,0,0,20,0,0,0,0,0,10,11,0,0,42,0,39,18,37,32,31,39,29,26,41,12,39,39,39,39,44,41,41,39,27,27,36,29,122,112,118,118,161,143,98,56,57,33,93,66,126,137,83,87,133,129,196,188,139,121,550,552,465,39,1706,1297,29987,29961,29973,29962]} 1. d4 {[%emt 0:00:02]} Nf6 {[%emt 0:00:01]} 2. Nf3 {[%emt 0:00:02]} g6 {[%emt 0:00:02]} 3. c4 {[%emt 0:00:04]} Bg7 {[%emt 0:00:01]} 4. Nc3 {[%emt 0:00:03]} d5 {[%emt 0:00:01]} 5. e3 {[%emt 0:00:03]} O-O {[%emt 0:00:33]} 6. cxd5 {[%emt 0:00:02]} Nxd5 {[%emt 0:00:05]} 7. Bc4 {[%emt 0:00:02]} Nb6 {[%emt 0:01:26]} 8. Bb3 {[%emt 0:00:02]} Nc6 {[%emt 0:00:20]} 9. O-O {[%emt 0:00:20]} e5 {[%emt 0:00:25]} 10. d5 {[%emt 0:00:16]} Na5 {[%emt 0:01:06]} 11. e4 {[%emt 0:00:02] D94: Grünfeld: 4 Nf3 Bg7 5 e3.} Bg4 {[%emt 0:01:48]} 12. h3 {[%emt 0:00:18]} Nxb3 {[%emt 0:00:22]} 13. axb3 {[%emt 0:00:02] The position is equal.} Bd7 {[%emt 0:01:25]} 14. Bg5 {[%emt 0:00:59]} f6 {[%emt 0:01:08]} 15. Be3 {[%emt 0:00:01]} Nc8 {[%emt 0:00:06]} 16. Nd2 {[%emt 0:01:38] [#]} f5 $146 {[%emt 0:01:49]} ({Predecessor:} 16... Nd6 17. Nc4 f5 18. f3 Re8 19. Nxd6 cxd6 20. Qd2 a6 21. Na4 fxe4 22. fxe4 Qh4 {1-0 (48) Markos,J (2568)-Priborsky,J (2344) Czech Republic 2008}) 17. exf5 {[%emt 0:00:13]} gxf5 {[%emt 0:00:14]} 18. f4 {[%emt 0:00:02]} Nd6 {[%emt 0:04:24]} 19. Nc4 {[%emt 0:01:38]} exf4 {[%emt 0:00:48]} 20. Bd4 {[%emt 0:01:35]} Qg5 {[%emt 0:03:56]} 21. Bxg7 {[%emt 0:00:58]} Qxg7 {[%emt 0:00:02]} 22. Nxd6 {[%emt 0:02:17]} cxd6 {[%emt 0:00:01]} 23. Rxf4 {[%emt 0:00:12]} Rfe8 {[%emt 0:00:40]} 24. Qd4 {[%emt 0:00:56]} Qe5 {[%emt 0:02:11]} 25. Qxe5 {[%emt 0:01:49]} dxe5 {[%emt 0:00:15]} 26. Rc4 {[%emt 0:00:02]} Rec8 {[%emt 0:01:08] Inhibits Rc7.} 27. Rxc8+ {[%emt 0:03:14]} Bxc8 $14 {[%emt 0:00:01][%mdl 4096] Endgame KRB-KRN} 28. Na4 {[%emt 0:00:02][%cal Oa4b6]} Rb8 {[%emt 0:00:40]} 29. Rc1 {[%emt 0:00:01]} b5 {[%emt 0:00:40]} 30. Nc5 {[%emt 0:00:10]} Kf7 {[%emt 0:00:02] [#]} (30... Rb6 $11 {keeps the balance.}) 31. d6 $1 $16 {[%emt 0:00:44] White is more active.} Be6 {[%emt 0:00:53]} 32. Ra1 {[%emt 0:00:28]} Ra8 {[%emt 0:01:40] [#]} 33. Ra6 $1 {[%emt 0:00:13] Black must now prevent d7.} Bd5 {[%emt 0:00:15]} 34. g3 {[%emt 0:03:15]} b4 $1 {[%emt 0:00:02]} 35. Kf2 {[%emt 0:00:17]} h5 {[%emt 0:00:04] Against g4} (35... f4 $1 $14) 36. h4 {[%emt 0:00:30]} f4 {[%emt 0:01:36]} (36... Kf6 $14) 37. gxf4 {[%emt 0:01:31]} exf4 {[%emt 0:00:01]} 38. d7 {[%emt 0:00:23] aiming for Rd6.} Ke7 {[%emt 0:00:29] Inhibits Rd6.} 39. Rh6 {[%emt 0:00:02]} Rg8 {[%emt 0:00:24]} (39... Rd8 $16 40. Rxh5 Kd6) 40. Rxh5 $18 {[%emt 0:00:10]} Bc6 {[%emt 0:00:24]} (40... Rg2+ $2 41. Kf1 Rd2 42. Re5+ Be6 43. Rxe6+ $18) 41. Rh6 {[%emt 0:01:47] Threatening mate with Re6+.} Bd5 {[%emt 0:00:01][%mdl 8192] Inhibits Re6+.} (41... Bxd7 $16 {is tougher.} 42. Rh7+ Kd6) 42. h5 {[%emt 0:00:21][%cal Bh4h5,Bh5h6][%mdl 32]} f3 {[%emt 0:00:24]} 43. Rg6 $2 {[%emt 0:00:24]} ({White should play} 43. Kf1 $18) 43... Rh8 $2 {[%emt 0:00:12][%mdl 8192]} (43... Rxg6 $14 44. hxg6 a5) 44. h6 {[%emt 0:00:24]} Bf7 {[%emt 0:00:11]} 45. Rg7 {[%emt 0:00:20]} Kf6 {[%emt 0:00:12]} 46. Nb7 {[%emt 0:00:20] Weighted Error Value: White=0.26 (precise) /Black=0.52} 1-0